[Event "11th LCC Rapid 2019"]
[Site "London"]
[Date "2019.12.07"]
[Round "6.24"]
[White "Jain, Gautam"]
[Black "Dupuis, Denis K"]
[Result "1-0"]
[WhiteElo "1900"]
[BlackElo "1599"]
[PlyCount "109"]
[EventDate "2019.12.08"]
[EventType "swiss"]
[EventCountry "ENG"]
[TimeControl "15+10"]
[WhiteClock "0:18:03"]
[BlackClock "0:11:32"]

1. e4 {[%emt 0:00:00]} e5 {[%emt 0:00:00]} 2. Nf3 {[%emt 0:00:00]} Nc6 {[%emt 0:00:00]} 3. Bb5 {[%emt 0:00:00]} f5 {[%emt 0:00:00]} 4. d4 {[%emt 0:00:00]} fxe4 {[%emt 0:00:00]} 5. Nxe5 {[%emt 0:00:00]} Nxe5 {[%emt 0:00:00]} 6. dxe5 {[%emt 0:00:00]} c6 {[%emt 0:00:00]} 7. Be2 {[%emt 0:00:00]} Qa5+ {[%emt 0:00:00]} 8. Bd2 {[%emt 0:00:00]} Qxe5 {[%emt 0:00:00]} 9. Bh5+ {[%emt 0:00:00]} Kd8 {[%emt 0:00:00]} 10. O-O {[%emt 0:00:00]} Nf6 {[%emt 0:00:00]} 11. Be2 {[%emt 0:00:00]} d5 {[%emt 0:00:00]} 12. Bc3 {[%emt 0:00:00]} Qf5 {[%emt 0:00:00]} 13. f3 {[%emt 0:00:00]} Qg6 {[%emt 0:00:00]} 14. Bxf6+ {[%emt 0:00:00]} Qxf6 {[%emt 0:00:00]} 15. fxe4 {[%emt 0:00:00]} Bc5+ {[%emt 0:00:00]} 16. Kh1 {[%emt 0:00:00]} Qxb2 {[%emt 0:00:00]} 17. Nd2 {[%emt 0:00:00]} Kc7 {[%emt 0:00:00]} 18. exd5 {[%emt 0:00:00]} cxd5 {[%emt 0:00:00]} 19. Nb3 {[%emt 0:00:00]} Bd6 {[%emt 0:00:00]} 20. Rf7+ {[%emt 0:00:00]} Bd7 {[%emt 0:00:00]} 21. Qxd5 {[%emt 0:00:00]} Qe5 {[%emt 0:00:00]} 22. Qxe5 {[%emt 0:00:00]} Bxe5 {[%emt 0:00:00]} 23. Rd1 {[%emt 0:00:00]} Rad8 {[%emt 0:00:00]} 24. Nc5 {[%emt 0:00:00]} Bd6 {[%emt 0:00:00]} 25. Ne6+ {[%emt 0:00:00]} Kc6 {[%emt 0:00:00]} 26. Bf3+ {[%emt 0:00:00]} Kb6 {[%emt 0:00:00]} 27. Nxd8 {[%emt 0:00:00]} Rxd8 {[%emt 0:00:00]} 28. Rxd6+ {[%emt 0:00:00]} Kc7 {[%emt 0:00:00]} 29. Rdxd7+ {[%emt 0:00:00]} Rxd7 {[%emt 0:00:00]} 30. Rxd7+ {[%emt 0:00:00]} Kxd7 {[%emt 0:00:00]} 31. Bxb7 {[%emt 0:00:00]} Kc7 {[%emt 0:00:00]} 32. Bd5 {[%emt 0:00:00]} Kd6 {[%emt 0:00:00]} 33. Bb3 {[%emt 0:00:00]} Kc5 {[%emt 0:00:00]} 34. Kg1 {[%emt 0:00:00]} a5 {[%emt 0:00:00]} 35. a4 {[%emt 0:00:00]} Kd4 {[%emt 0:00:00]} 36. Kf2 {[%emt 0:00:00]} Kc3 {[%emt 0:00:00]} 37. Ke3 {[%emt 0:00:00]} Kb4 {[%emt 0:00:00]} 38. Kd4 {[%emt 0:00:00]} g5 {[%emt 0:00:00]} 39. Ke5 {[%emt 0:00:00]} Kc5 {[%emt 0:00:00]} 40. Kf5 {[%emt 0:00:00]} Kd4 {[%emt 0:00:00]} 41. Kxg5 {[%emt 0:00:00]} Ke3 {[%emt 0:00:00]} 42. Kh6 {[%emt 0:00:00]} Kf2 {[%emt 0:00:00]} 43. Kxh7 {[%emt 0:00:00]} Kxg2 {[%emt 0:00:00]} 44. h4 {[%emt 0:00:00]} Kg3 {[%emt 0:00:00]} 45. h5 {[%emt 0:00:00]} Kg4 {[%emt 0:00:00]} 46. h6 {[%emt 0:00:00]} Kg5 {[%emt 0:00:00]} 47. Kg7 {[%emt 0:00:00]} Kf5 {[%emt 0:00:00]} 48. h7 {[%emt 0:00:00]} Ke5 {[%emt 0:00:00]} 49. h8=Q {[%emt 0:00:00]} Kd6 {[%emt 0:00:00]} 50. Qh2+ {[%emt 0:00:00]} Kc6 {[%emt 0:00:00]} 51. Qe5 {[%emt 0:00:00]} Kd7 {[%emt 0:00:00]} 52. Be6+ {[%emt 0:00:00]} Ke7 {[%emt 0:00:00]} 53. Bf5+ {[%emt 0:00:00]} Kd8 {[%emt 0:00:00]} 54. Qd6+ {[%emt 0:00:00]} Ke8 {[%emt 0:00:00]} 55. Qd7# {[%emt 0:00:00]} 1-0

[Event "11th LCC Rapid 2019"]
[Site "London"]
[Date "2019.12.07"]
[Round "6.25"]
[White "Chakanyuka, Charles"]
[Black "Kirupakaran, Vishnu"]
[Result "1/2-1/2"]
[WhiteElo "1995"]
[BlackElo "1871"]
[PlyCount "100"]
[EventDate "2019.12.08"]
[EventType "swiss"]
[EventCountry "ENG"]
[TimeControl "15+10"]
[WhiteClock "0:06:21"]
[BlackClock "0:05:00"]

1. e4 {[%emt 0:00:00]} c5 {[%emt 0:00:00]} 2. Nf3 {[%emt 0:00:00]} d6 {[%emt 0:00:00]} 3. d4 {[%emt 0:00:00]} cxd4 {[%emt 0:00:00]} 4. Qxd4 {[%emt 0:00:00]} a6 {[%emt 0:00:00]} 5. c4 {[%emt 0:00:00]} Nc6 {[%emt 0:00:00]} 6. Qd1 {[%emt 0:00:00]} Nf6 {[%emt 0:00:00]} 7. Nc3 {[%emt 0:00:00]} g6 {[%emt 0:00:00]} 8. g3 {[%emt 0:00:00]} Bg7 {[%emt 0:00:00]} 9. Bg2 {[%emt 0:00:00]} O-O {[%emt 0:00:00]} 10. O-O {[%emt 0:00:00]} Be6 {[%emt 0:00:00]} 11. Qe2 {[%emt 0:00:00]} Rc8 {[%emt 0:00:00]} 12. Nd5 {[%emt 0:00:00]} Na5 {[%emt 0:00:00]} 13. Nd2 {[%emt 0:00:00]} Bxd5 {[%emt 0:00:00]} 14. exd5 {[%emt 0:00:00]} Qc7 {[%emt 0:00:00]} 15. Re1 {[%emt 0:00:00]} Rfe8 {[%emt 0:00:00]} 16. Bf1 {[%emt 0:00:00]} Nd7 {[%emt 0:00:00]} 17. Rb1 {[%emt 0:00:00]} Ne5 {[%emt 0:00:00]} 18. b3 {[%emt 0:00:00]} b6 {[%emt 0:00:00]} 19. Bh3 {[%emt 0:00:00]} Rb8 {[%emt 0:00:00]} 20. Bb2 {[%emt 0:00:00]} Nb7 {[%emt 0:00:00]} 21. f4 {[%emt 0:00:00]} Nd7 {[%emt 0:00:00]} 22. Bxg7 {[%emt 0:00:00]} Kxg7 {[%emt 0:00:00]} 23. Nf3 {[%emt 0:00:00]} Qc5+ {[%emt 0:00:00]} 24. Qf2 {[%emt 0:00:00]} Nf6 {[%emt 0:00:00]} 25. Re2 {[%emt 0:00:00]} b5 {[%emt 0:00:00]} 26. Kg2 {[%emt 0:00:00]} bxc4 {[%emt 0:00:00]} 27. bxc4 {[%emt 0:00:00]} Qxc4 {[%emt 0:00:00]} 28. Reb2 {[%emt 0:00:00]} Qxd5 {[%emt 0:00:00]} 29. Qa7 {[%emt 0:00:00]} e6 {[%emt 0:00:00]} 30. Rxb7 {[%emt 0:00:00]} Rxb7 {[%emt 0:00:00]} 31. Qxb7 {[%emt 0:00:00]} Qxa2+ {[%emt 0:00:00]} 32. Rb2 {[%emt 0:00:00]} Qc4 {[%emt 0:00:00]} 33. Ng5 {[%emt 0:00:00]} Qd5+ {[%emt 0:00:00]} 34. Qxd5 {[%emt 0:00:00]} Nxd5 {[%emt 0:00:00]} 35. Rb7 {[%emt 0:00:00]} Re7 {[%emt 0:00:00]} 36. Rxe7 {[%emt 0:00:00]} Nxe7 {[%emt 0:00:00]} 37. Ne4 {[%emt 0:00:00]} d5 {[%emt 0:00:00]} 38. Nc5 {[%emt 0:00:00]} a5 {[%emt 0:00:00]} 39. Kf2 {[%emt 0:00:00]} Kf6 {[%emt 0:00:00]} 40. Ke3 {[%emt 0:00:00]} Nc6 {[%emt 0:00:00]} 41. Kd3 {[%emt 0:00:00]} Ke7 {[%emt 0:00:00]} 42. Kc3 {[%emt 0:00:00]} Kd6 {[%emt 0:00:00]} 43. Nd3 {[%emt 0:00:00]} f6 {[%emt 0:00:00]} 44. Bf1 {[%emt 0:01:12]} e5 {[%emt 0:00:09]} 45. Nf2 {[%emt 0:00:14]} exf4 {[%emt 0:01:17]} 46. gxf4 {[%emt 0:00:01]} g5 {[%emt 0:00:01]} 47. fxg5 {[%emt 0:00:14]} fxg5 {[%emt 0:00:02]} 48. Bb5 {[%emt 0:00:53]} Ne5 {[%emt 0:00:11]} 49. h3 {[%emt 0:00:52]} h5 {[%emt 0:00:16]} 50. Be2 {[%emt 0:00:09]} g4 {[%emt 0:00:18]} 1/2-1/2

[Event "11th LCC Rapid 2019"]
[Site "London"]
[Date "2019.12.07"]
[Round "6.26"]
[White "Zheng, William"]
[Black "Ignatovic, Ernest"]
[Result "0-1"]
[WhiteElo "1672"]
[BlackElo "1703"]
[PlyCount "68"]
[EventDate "2019.12.08"]
[EventType "swiss"]
[EventCountry "ENG"]
[TimeControl "15+10"]
[WhiteClock "0:08:04"]
[BlackClock "0:08:38"]

1. e4 {[%emt 0:00:00]} e6 {[%emt 0:00:00]} 2. d4 {[%emt 0:00:00]} d5 {[%emt 0:00:00]} 3. exd5 {[%emt 0:00:00]} exd5 {[%emt 0:00:00]} 4. Nf3 {[%emt 0:00:00]} Bd6 {[%emt 0:00:00]} 5. Bd3 {[%emt 0:00:00]} Nc6 {[%emt 0:00:00]} 6. O-O {[%emt 0:00:00]} h6 {[%emt 0:00:00]} 7. h3 {[%emt 0:00:00]} Be6 {[%emt 0:00:00]} 8. c3 {[%emt 0:00:00]} Qd7 {[%emt 0:00:00]} 9. Re1 {[%emt 0:00:00]} O-O-O {[%emt 0:00:00]} 10. b4 {[%emt 0:00:00]} g5 {[%emt 0:00:00]} 11. Na3 {[%emt 0:00:00]} Nf6 {[%emt 0:00:00]} 12. Nb5 {[%emt 0:00:00]} g4 {[%emt 0:00:00]} 13. Nxd6+ {[%emt 0:00:00]} Qxd6 {[%emt 0:00:00]} 14. Ne5 {[%emt 0:00:00]} gxh3 {[%emt 0:00:00]} 15. g3 {[%emt 0:00:00]} Rdg8 {[%emt 0:00:00]} 16. Bf4 {[%emt 0:00:00]} Qf8 {[%emt 0:00:00]} 17. Nxc6 {[%emt 0:00:00]} bxc6 {[%emt 0:00:00]} 18. Qa4 {[%emt 0:00:00]} Nh5 {[%emt 0:00:00]} 19. Be5 {[%emt 0:00:00]} f6 {[%emt 0:00:00]} 20. Qxc6 {[%emt 0:00:00]} fxe5 {[%emt 0:00:40]} 21. Qxe6+ {[%emt 0:00:00]} Kb8 {[%emt 0:00:39]} 22. Qxe5 {[%emt 0:00:00]} h2+ {[%emt 0:01:02]} 23. Kg2 {[%emt 0:00:00]} Nf4+ {[%emt 0:00:23]} 24. Kh1 {[%emt 0:00:00]} Nxd3 {[%emt 0:00:05]} 25. Qxd5 {[%emt 0:00:00]} Nxe1 {[%emt 0:00:42]} 26. Qb5+ {[%emt 0:00:00]} Kc8 {[%emt 0:00:09]} 27. Qa6+ {[%emt 0:00:00]} Kb8 {[%emt 0:00:02]} 28. Qb5+ {[%emt 0:00:00]} Kc8 {[%emt 0:00:14]} 29. Qa6+ {[%emt 0:00:00]} Kd7 {[%emt 0:00:04]} 30. Qb5+ {[%emt 0:00:00]} Kd8 {[%emt 0:00:24]} 31. Qb8+ {[%emt 0:00:00]} Kd7 {[%emt 0:00:03]} 32. Qb5+ {[%emt 0:00:00]} c6 {[%emt 0:00:11]} 33. Qb7+ {[%emt 0:00:00]} Kd6 {[%emt 0:00:06]} 34. Rxe1 {[%emt 0:00:00]} Qf3+ {[%emt 0:00:00] Kg1} 0-1

[Event "11th LCC Rapid 2019"]
[Site "London"]
[Date "2019.12.07"]
[Round "6.27"]
[White "Trivedi, Aarnavh"]
[Black "Conway, Paul Bernard"]
[Result "1-0"]
[WhiteElo "1761"]
[BlackElo "1837"]
[PlyCount "59"]
[EventDate "2019.12.08"]
[EventType "swiss"]
[EventCountry "ENG"]
[TimeControl "15+10"]
[WhiteClock "0:02:54"]
[BlackClock "0:02:29"]

1. d4 {[%emt 0:00:00]} Nf6 {[%emt 0:00:00]} 2. Bf4 {[%emt 0:00:00]} g6 {[%emt 0:00:00]} 3. e3 {[%emt 0:00:00]} Bg7 {[%emt 0:00:00]} 4. c3 {[%emt 0:00:00]} d6 {[%emt 0:00:00]} 5. Bd3 {[%emt 0:00:00]} Nbd7 {[%emt 0:00:00]} 6. Nf3 {[%emt 0:00:00]} O-O {[%emt 0:00:00]} 7. Nbd2 {[%emt 0:00:00]} Re8 {[%emt 0:00:00]} 8. Bc4 {[%emt 0:00:00]} d5 {[%emt 0:00:00]} 9. Bd3 {[%emt 0:00:00]} c6 {[%emt 0:00:00]} 10. O-O {[%emt 0:00:00]} Qb6 {[%emt 0:00:00]} 11. Qc2 {[%emt 0:00:00]} Nh5 {[%emt 0:00:00]} 12. Rfe1 {[%emt 0:00:00]} e5 {[%emt 0:00:00]} 13. dxe5 {[%emt 0:00:00]} Nxe5 {[%emt 0:00:00]} 14. Nxe5 {[%emt 0:00:00]} Bxe5 {[%emt 0:00:00]} 15. Bxe5 {[%emt 0:00:00]} Rxe5 {[%emt 0:00:00]} 16. Nf3 {[%emt 0:00:00]} Re8 {[%emt 0:00:00]} 17. h3 {[%emt 0:00:00]} Ng7 {[%emt 0:00:00]} 18. e4 {[%emt 0:00:00]} dxe4 {[%emt 0:00:00]} 19. Bxe4 {[%emt 0:00:00]} Nf5 {[%emt 0:00:00]} 20. Bd3 {[%emt 0:00:00]} Bd7 {[%emt 0:00:00]} 21. Ne5 {[%emt 0:00:00]} Be6 {[%emt 0:00:00]} 22. Ng4 {[%emt 0:00:00]} Kg7 {[%emt 0:00:00]} 23. Qd2 {[%emt 0:00:00]} Rad8 {[%emt 0:00:00]} 24. Rad1 {[%emt 0:00:00]} h5 {[%emt 0:00:00]} 25. Ne5 {[%emt 0:00:00]} Bxa2 {[%emt 0:00:06]} 26. Qg5 {[%emt 0:00:34]} Be6 {[%emt 0:00:44]} 27. g4 {[%emt 0:00:33]} hxg4 {[%emt 0:00:31]} 28. Nxg4 {[%emt 0:00:22]} Rh8 {[%emt 0:00:47]} 29. Bxf5 {[%emt 0:01:14]} Bxf5 {[%emt 0:00:03]} 30. Qf6+ {[%emt 0:00:03]} 1-0

[Event "11th LCC Rapid 2019"]
[Site "London"]
[Date "2019.12.07"]
[Round "6.29"]
[White "Sandhu, Manvith"]
[Black "Rushbrooke, Tibo"]
[Result "0-1"]
[WhiteElo "1673"]
[BlackElo "1730"]
[PlyCount "48"]
[EventDate "2019.12.08"]
[EventType "swiss"]
[EventCountry "ENG"]
[TimeControl "15+10"]
[WhiteClock "0:01:03"]
[BlackClock "0:06:29"]

1. e4 {[%emt 0:00:00]} e5 {[%emt 0:00:00]} 2. Nf3 {[%emt 0:00:00]} Nc6 {[%emt 0:00:00]} 3. Bb5 {[%emt 0:00:00]} a6 {[%emt 0:00:00]} 4. Ba4 {[%emt 0:00:00]} Nf6 {[%emt 0:00:00]} 5. d3 {[%emt 0:00:00]} Bc5 {[%emt 0:00:00]} 6. c3 {[%emt 0:00:00]} O-O {[%emt 0:00:00]} 7. Bxc6 {[%emt 0:00:00]} dxc6 {[%emt 0:00:00]} 8. Nxe5 {[%emt 0:00:00]} Re8 {[%emt 0:00:00]} 9. Nf3 {[%emt 0:00:00]} Bg4 {[%emt 0:00:00]} 10. O-O {[%emt 0:00:00]} Qd7 {[%emt 0:00:00]} 11. Bg5 {[%emt 0:00:00]} Rad8 {[%emt 0:00:00]} 12. e5 {[%emt 0:00:00]} Bxf3 {[%emt 0:00:00]} 13. Qxf3 {[%emt 0:00:00]} Rxe5 {[%emt 0:00:00]} 14. Bxf6 {[%emt 0:00:00]} gxf6 {[%emt 0:00:00]} 15. d4 {[%emt 0:00:00]} Rf5 {[%emt 0:00:00]} 16. Qg4+ {[%emt 0:00:00]} Kh8 {[%emt 0:00:00]} 17. dxc5 {[%emt 0:00:00]} Rg8 {[%emt 0:00:00]} 18. Qd4 {[%emt 0:00:00]} Qe6 {[%emt 0:00:00]} 19. Na3 {[%emt 0:00:00]} Qe2 {[%emt 0:00:00]} 20. c4 {[%emt 0:00:00]} Rxg2+ {[%emt 0:00:00]} 21. Kh1 {[%emt 0:00:00]} Qf3 {[%emt 0:02:34]} 22. Qe3 {[%emt 0:00:00]} Rxh2+ {[%emt 0:00:21]} 23. Kxh2 {[%emt 0:00:00]} Rh5+ {[%emt 0:00:09]} 24. Kg1 {[%emt 0:00:00]} Rh1# {[%emt 0:00:08]} 0-1